bitfinex/quotes_SOLUSD_20250206
["timestamp","ask_amount","ask_price","bid_price","bid_amount"]
[1738869831245,0.03,191.62,191.57,23.55134235]
[1738869832143,0.03,191.62,191.59,23.55134235]
[1738869832344,0.03,191.62,191.6,23.55134235]
[1738869833143,0.03,191.62,191.61,23.67683235]
[1738869834542,0.03,191.62,191.59,0.12549]
[1738869834543,0.13602795,191.62,191.58,23.55134235]
[1738869834953,0.13602795,191.62,191.57,28.77104235]
[1738869835244,0.13602795,191.62,191.58,0.12549]
[1738869835440,23.6873703,191.62,191.56,23.67683235]
[1738869835847,23.6873703,191.62,191.57,0.12549]
[1738869836941,0.13602795,191.62,191.57,28.89673235]
[1738869837323,0.13602795,191.62,191.61,23.67683235]
[1738869837524,0.13602795,191.62,191.59,23.67683235]
[1738869837741,0.13602795,191.62,191.59,23.55134235]
[1738869838531,0.13602795,191.62,191.57,23.55134235]
[1738869839123,0.13602795,191.62,191.57,28.77134235]
[1738869840428,0.13602795,191.62,191.52,6.63609]
[1738869840429,23.55134235,191.59,191.53,23.55134235]
[1738869840640,23.55134235,191.59,191.52,24.86562503]
[1738869840832,23.55134235,191.61,191.54,23.55134235]
[1738869841038,0.13602795,191.62,191.57,23.55134235]
[1738869841824,0.13602795,191.62,191.59,23.55134235]
[1738869842024,0.13602795,191.62,191.6,23.55134235]
[1738869842223,0.13602795,191.62,191.57,20.0]
[1738869842224,0.13602795,191.62,191.61,23.55134235]
[1738869842950,0.13602795,191.62,191.61,28.77024235]
[1738869843531,0.13602795,191.62,191.58,5.2197]
[1738869843729,0.13602795,191.62,191.56,23.55134235]
[1738869843730,23.6873703,191.62,191.56,23.55134235]
[1738869843928,23.55134235,191.61,191.56,20.0]
[1738869844124,23.6873703,191.62,191.56,20.0]
[1738869844328,0.13602795,191.62,191.56,43.55134235]
[1738869844569,0.13602795,191.62,191.56,25.2201]
[1738869844570,23.6873703,191.62,191.56,25.2201]
[1738869844852,0.13602795,191.62,191.56,48.77144235]
[1738869846631,23.55134235,191.57,191.52,5.2213]
[1738869846831,23.55134235,191.57,191.51,0.063]
[1738869847249,23.55134235,191.56,191.51,0.063]
[1738869847428,23.55134235,191.55,191.51,0.063]
[1738869847863,23.55134235,191.54,191.51,0.063]
[1738869848547,23.55134235,191.56,191.51,0.063]
[1738869848930,23.55134235,191.55,191.51,0.063]
[1738869850169,23.55134235,191.56,191.51,0.063]
[1738869850381,23.55134235,191.58,191.51,23.61434235]
[1738869850556,23.55134235,191.56,191.51,0.063]
[1738869851073,23.55134235,191.55,191.51,0.063]
[1738869851248,23.55134235,191.53,191.51,0.063]
[1738869851453,23.55134235,191.54,191.51,0.063]
[1738869851767,23.55134235,191.55,191.51,0.063]
[1738869852542,23.55134235,191.57,191.51,23.61434235]
[1738869852742,23.55134235,191.58,191.51,23.61434235]
[1738869853158,25.20324235,191.6,191.53,23.55134235]
[1738869853359,6.57912795,191.62,191.56,23.55134235]
[1738869853567,6.57912795,191.62,191.51,0.43947]
[1738869853568,0.13602795,191.62,191.58,23.55134235]
[1738869854562,0.10073696,191.59,191.56,23.55134235]
[1738869854875,23.65207931,191.59,191.54,5.2206]
[1738869856857,0.10073696,191.59,191.54,28.77194235]
[1738869857364,0.10073696,191.59,191.57,23.55134235]
[1738869857875,0.10073696,191.59,191.56,23.55134235]
[1738869858450,0.10073696,191.59,191.54,28.77194235]
[1738869858649,0.10073696,191.59,191.56,23.55134235]
[1738869858848,0.10073696,191.59,191.55,23.55134235]
[1738869859048,0.10073696,191.59,191.56,5.2202]
[1738869859555,0.10073696,191.59,191.57,23.55134235]
[1738869859771,0.10073696,191.59,191.58,23.55134235]
[1738869860751,0.10073696,191.59,191.58,28.77104235]
[1738869860952,0.13073696,191.59,191.58,42.55936088]
[1738869861151,5.12e-05,191.6,191.59,13.53733853]
[1738869861388,5.12e-05,191.6,191.59,37.08868088]
[1738869864688,0.1029037,191.61,191.59,37.08868088]
[1738869864689,0.1029037,191.61,191.6,5.47018]
[1738869864860,0.1029037,191.61,191.6,29.02152235]
[1738869865195,0.1029037,191.61,191.6,28.77054235]
[1738869865352,0.1029037,191.61,191.6,5.2192]
[1738869866570,0.1029037,191.61,191.58,5.2197]
[1738869866776,0.1029037,191.61,191.58,28.77104235]
[1738869868660,0.1029037,191.61,191.59,23.55134235]
[1738869869983,0.1029037,191.61,191.6,23.55134235]
[1738869870385,3.7e-06,191.61,191.6,23.55134235]
[1738869870568,3.817e-05,191.63,191.61,0.37647]
[1738869870763,3.817e-05,191.63,191.62,43.55134235]
[1738869871090,8.327e-05,191.64,191.62,43.55134235]
[1738869871295,8.327e-05,191.64,191.63,43.55134235]
[1738869871492,3.006e-05,191.65,191.63,43.92781235]
[1738869871667,3.006e-05,191.65,191.64,23.55134235]
[1738869872071,3.006e-05,191.65,191.64,28.76944235]
[1738869873479,3.006e-05,191.65,191.64,30.10080281]
[1738869873784,3.006e-05,191.65,191.64,28.76944235]
[1738869874688,3.883e-05,191.65,191.64,28.76944235]
[1738869874997,3.607e-05,191.68,191.67,20.0]
[1738869875199,3.607e-05,191.68,191.67,43.55134235]
[1738869875702,3.607e-05,191.68,191.65,23.55134235]
[1738869876061,3.607e-05,191.68,191.66,23.55134235]
[1738869876282,3.607e-05,191.68,191.67,23.55134235]
[1738869876491,3.607e-05,191.68,191.67,28.76864235]
[1738869878204,3.607e-05,191.68,191.67,29.01962235]
[1738869880503,3.607e-05,191.68,191.67,30.30892883]
[1738869881994,2.451e-05,191.69,191.68,29.01932235]
[1738869883103,0.08400006,191.7,191.68,29.01932235]
[1738869883287,0.08400006,191.7,191.69,23.80232235]
[1738869883779,0.08400006,191.7,191.69,29.01902235]
[1738869883981,6e-08,191.7,191.69,29.01902235]
[1738869884276,6.757e-05,191.74,191.73,0.25098]
[1738869884480,6.757e-05,191.74,191.73,23.80232235]
[1738869885215,6.757e-05,191.74,191.72,33.53733853]
[1738869885216,6.757e-05,191.74,191.72,20.0]
[1738869885711,6.757e-05,191.74,191.73,28.76694235]
[1738869885882,0.03006757,191.74,191.73,28.76694235]
[1738869886825,0.03006757,191.74,191.73,19.91958269]
[1738869888317,0.03006757,191.74,191.73,5.2156]
[1738869888606,0.03006757,191.74,191.73,19.91958269]
[1738869891014,0.03006757,191.74,191.73,5.2156]
[1738869891511,0.03006757,191.74,191.73,19.91958269]
[1738869892821,0.03006757,191.74,191.73,5.2156]
[1738869893011,0.03006757,191.74,191.73,19.91958269]
[1738869894337,6.757e-05,191.74,191.73,19.91958269]
[1738869894537,0.09639883,191.74,191.73,19.91958269]
[1738869894813,9.883e-05,191.74,191.73,19.91958269]
[1738869895000,0.13263222,191.76,191.75,20.0]
[1738869895001,7.222e-05,191.76,191.75,20.0]
[1738869895196,14.70398269,191.85,191.75,20.0]
[1738869895197,1.6272,191.9,191.78,0.12549]
[1738869895395,1.6272,191.9,191.87,14.70398269]
[1738869895994,1.6272,191.9,191.85,14.70398269]
[1738869896205,16.33118269,191.9,191.84,14.70398269]
[1738869896829,16.33118269,191.9,191.85,5.2124]
[1738869897028,1.6272,191.9,191.85,5.2124]
[1738869897326,1.6272,191.9,191.83,5.2128]
[1738869897327,14.70398269,191.86,191.83,5.2128]
[1738869898312,14.70398269,191.86,191.78,13.0352]
[1738869898313,14.70398269,191.86,191.8,14.70398269]
[1738869898809,23.5085243,191.86,191.8,23.5085243]
[1738869899612,23.5085243,191.86,191.81,5.2134]
[1738869900503,23.5085243,191.87,191.81,28.7219243]
[1738869900905,23.5085243,191.84,191.81,5.2134]
[1738869901105,23.5085243,191.88,191.81,28.7219243]
[1738869901306,23.5085243,191.88,191.82,23.5085243]
[1738869901630,23.5085243,191.88,191.81,41.7556243]
[1738869901823,23.5085243,191.88,191.82,23.5085243]
[1738869901993,1.6572,191.9,191.85,23.5085243]
[1738869902499,25.1657243,191.9,191.84,23.5085243]
[1738869902812,25.1657243,191.9,191.85,5.2124]
[1738869903011,1.6572,191.9,191.85,28.7209243]
[1738869903412,1.6572,191.9,191.85,5.2124]
[1738869903904,23.5085243,191.87,191.85,5.2124]
[1738869904104,23.5085243,191.87,191.82,5.2132]
[1738869904620,1.6572,191.9,191.82,5.2132]
[1738869904621,23.5085243,191.88,191.82,5.2132]
[1738869904914,23.5085243,191.85,191.79,5.214]
[1738869905330,25.1657243,191.9,191.82,23.5085243]
[1738869905331,23.5085243,191.88,191.82,23.5085243]
[1738869905536,53.5085243,191.89,191.83,23.5085243]
[1738869905834,23.5085243,191.89,191.82,23.5085243]
[1738869906209,53.5085243,191.89,191.79,18.249]
[1738869906417,23.5085243,191.88,191.82,23.5085243]
[1738869906720,23.5085243,191.84,191.79,18.249]
[1738869906905,23.5085243,191.85,191.79,41.7575243]
[1738869907229,1.6572,191.9,191.84,23.5085243]
[1738869907426,1.6572,191.9,191.85,23.5085243]
[1738869907633,1.6572,191.9,191.84,23.5085243]
[1738869907824,1.6572,191.9,191.79,18.37449]
[1738869907825,23.5085243,191.89,191.83,23.5085243]
[1738869908014,23.5085243,191.89,191.82,23.5085243]
[1738869908340,23.5085243,191.84,191.79,5.214]
[1738869908545,23.5085243,191.83,191.79,5.214]
[1738869908822,23.5085243,191.81,191.76,5.2148]
[1738869909025,30.0,191.84,191.76,28.7233243]
[1738869909026,23.5085243,191.82,191.76,28.7233243]
[1738869909221,23.5085243,191.83,191.76,28.7233243]
[1738869909609,23.5085243,191.82,191.76,28.7233243]
[1738869909809,23.5085243,191.81,191.76,5.2148]
[1738869910223,23.5085243,191.82,191.76,5.2148]
[1738869911925,23.5085243,191.84,191.77,23.5085243]
[1738869912112,23.5085243,191.83,191.76,23.5085243]
[1738869912510,23.5085243,191.82,191.76,23.5085243]
[1738869912711,23.5085243,191.79,191.73,41.8260243]
[1738869913247,23.5085243,191.85,191.78,23.5085243]
[1738869913415,23.5085243,191.85,191.79,23.5085243]
[1738869913620,23.5085243,191.86,191.79,23.5085243]
[1738869914005,53.5085243,191.87,191.8,23.5085243]
[1738869914204,53.5085243,191.87,191.74,0.25098]
[1738869914205,29.6425243,191.88,191.81,23.5085243]
[1738869914525,0.10665867,191.85,191.84,23.5085243]
[1738869915113,0.10711409,191.87,191.85,5.2124]
[1738869915333,23.5085243,191.97,191.87,0.25098]
[1738869915539,6.0694,191.98,191.89,23.5085243]
[1738869915828,6.0694,191.98,191.9,23.5085243]
[1738869916420,23.5085243,191.98,191.9,23.5085243]
[1738869916919,1.5373,191.99,191.88,23.5085243]
[1738869916920,23.5085243,191.95,191.88,23.5085243]
[1738869917116,23.5085243,191.93,191.88,23.5085243]
[1738869917318,23.5085243,191.95,191.88,23.5085243]
[1738869917520,23.5085243,191.94,191.86,18.2424]
[1738869917730,1.5373,191.99,191.86,5.2121]
[1738869917731,23.60231829,191.91,191.86,5.2121]
[1738869918033,23.5085243,191.89,191.86,5.2121]
[1738869918426,23.5085243,191.9,191.86,5.2121]
[1738869919113,23.5085243,191.9,191.85,5.2124]
[1738869920815,23.5085243,191.89,191.84,5.2126]
[1738869921612,23.5085243,191.87,191.84,5.2126]
[1738869922034,23.5085243,191.85,191.81,5.2134]
[1738869922338,23.5085243,191.82,191.76,5.2148]
[1738869922506,23.5085243,191.79,191.76,5.2148]
[1738869922707,23.5085243,191.77,191.73,0.063]
[1738869922914,23.5085243,191.74,191.73,0.063]
[1738869924630,23.5085243,191.76,191.73,0.063]
[1738869926236,23.5085243,191.79,191.73,23.5715243]
[1738869926414,25.0282243,191.8,191.73,23.5715243]
[1738869926937,23.5085243,191.79,191.73,23.5715243]
[1738869927142,23.5085243,191.79,191.73,5.2786]
[1738869928338,23.5085243,191.79,191.73,28.7871243]
[1738869928541,25.0282243,191.8,191.73,28.7871243]
[1738869928924,25.0282243,191.8,191.74,23.5085243]
[1738869929133,25.0282243,191.8,191.73,28.7871243]
[1738869929347,23.5085243,191.75,191.73,0.063]
[1738869929530,23.5085243,191.74,191.73,0.063]
[1738869929725,23.5085243,191.75,191.73,0.063]
[1738869930036,23.5085243,191.76,191.73,0.063]
[1738869930342,23.5085243,191.79,191.73,23.5715243]
[1738869930516,29.7526243,191.81,191.75,23.5085243]
[1738869930721,23.5085243,191.83,191.76,23.5085243]
[1738869930935,23.5085243,191.85,191.78,23.5085243]
[1738869931232,23.5085243,191.88,191.81,23.5085243]
[1738869931433,23.5085243,191.86,191.8,23.5085243]
[1738869931620,23.5085243,191.84,191.77,23.5085243]
[1738869932024,23.5085243,191.84,191.78,23.5085243]
[1738869932439,53.5085243,191.85,191.79,23.5085243]
[1738869932634,53.5085243,191.87,191.8,23.5085243]
[1738869933445,23.5085243,191.86,191.79,23.5085243]
[1738869933651,23.5085243,191.86,191.8,5.2137]
[1738869934023,23.5085243,191.86,191.8,28.7222243]
[1738869934535,0.10506862,191.81,191.8,28.7222243]
[1738869935447,0.10506862,191.81,191.79,28.7225243]
[1738869935623,0.10506862,191.81,191.75,28.7236243]
[1738869935823,23.61359292,191.81,191.75,5.2151]
[1738869936029,23.5085243,191.77,191.73,0.063]
[1738869936332,30.0,191.78,191.73,0.063]
[1738869936523,23.5085243,191.77,191.73,0.063]
[1738869937534,30.21769292,191.81,191.74,23.5085243]
[1738869937740,6.70916862,191.81,191.75,23.5085243]
[1738869937932,0.10506862,191.81,191.75,23.5085243]
[1738869938340,23.61359292,191.81,191.74,23.5085243]
[1738869938545,23.5085243,191.8,191.74,23.5085243]
[1738869939049,23.61359292,191.81,191.74,23.5085243]
[1738869939530,23.61359292,191.81,191.74,28.7236243]
[1738869939922,23.61359292,191.81,191.75,23.5085243]
[1738869940342,23.61359292,191.81,191.74,28.7236243]
[1738869940642,23.5085243,191.8,191.73,23.5715243]
[1738869941727,23.5085243,191.78,191.73,5.2786]
[1738869941929,30.0,191.8,191.73,5.2786]
[1738869941930,23.5085243,191.79,191.73,5.2786]
[1738869942748,23.5085243,191.78,191.73,5.2786]
[1738869943258,23.5085243,191.8,191.73,28.7871243]
[1738869943461,0.10506862,191.81,191.76,23.5085243]
[1738869943944,0.10506862,191.81,191.75,23.5085243]
[1738869944535,0.10506862,191.81,191.73,18.3177]
[1738869944755,0.10506862,191.81,191.77,23.5085243]
[1738869944925,0.10506862,191.81,191.76,23.5085243]
[1738869945250,0.10506862,191.81,191.75,23.5085243]
[1738869945964,0.10506862,191.81,191.76,23.5085243]
[1738869946241,0.10506862,191.81,191.8,23.5085243]
[1738869946747,0.10506862,191.81,191.8,14.69453996]
[1738869948149,0.10506862,191.81,191.8,19.90823996]
[1738869948755,0.10506862,191.81,191.8,28.72231241]
[1738869949833,0.10506862,191.81,191.79,23.50861241]
[1738869951233,0.10506862,191.81,191.8,23.50861241]
[1738869951932,0.10506862,191.81,191.8,28.72231241]
[1738869952140,0.10506862,191.81,191.8,5.2137]
[1738869954552,30.0,191.8,191.75,0.063]
[1738869954742,0.200797,191.81,191.78,23.50861241]
[1738869954931,0.200797,191.81,191.75,5.2781]
[1738869956557,0.09572838,191.81,191.75,0.063]
[1738869956758,0.09572838,191.81,191.76,23.50861241]
[1738869957632,23.50861241,191.79,191.75,0.063]
[1738869957839,30.0,191.78,191.75,0.063]
[1738869958056,23.50861241,191.79,191.75,0.063]
[1738869959133,23.50861241,191.8,191.75,0.063]
[1738869959373,23.50861241,191.79,191.75,0.063]
[1738869959534,23.50861241,191.8,191.75,0.063]
[1738869959735,0.09572838,191.81,191.76,23.50861241]
[1738869962160,23.60434079,191.81,191.75,0.063]
[1738869962544,23.50861241,191.77,191.75,0.063]
[1738869962748,23.50861241,191.76,191.75,0.063]
[1738869963668,53.50861241,191.76,191.75,0.063]
[1738869963839,54.50861241,191.76,191.75,0.063]
[1738869964049,31.0,191.72,191.64,0.063]
[1738869964350,23.50861241,191.67,191.64,0.063]
[1738869964752,30.0,191.68,191.64,0.063]
[1738869964753,23.50861241,191.66,191.64,0.063]
[1738869965458,23.50861241,191.65,191.64,0.063]
[1738869965840,26.59571241,191.65,191.64,0.063]
[1738869966659,29.13411241,191.65,191.64,0.063]
[1738869968448,27.13411241,191.65,191.64,0.063]
[1738869969570,28.13411241,191.65,191.64,0.063]
[1738869969763,29.13411241,191.65,191.64,0.063]
[1738869969964,31.0,191.61,191.6,0.063]
[1738869970188,54.50861241,191.61,191.6,0.063]
[1738869970679,53.50861241,191.61,191.6,0.063]
[1738869970966,44.7360474,191.61,191.6,0.063]
[1738869971145,44.7360474,191.65,191.6,0.063]
[1738869971958,46.8231474,191.65,191.6,0.063]
[1738869972264,14.7360474,191.64,191.6,0.063]
[1738869972466,46.8231474,191.65,191.6,0.063]
[1738869972767,55.65021724,191.65,191.6,0.063]
[1738869973668,23.56311724,191.64,191.6,0.063]
[1738869973860,53.56311724,191.63,191.6,0.063]
[1738869974673,0.09929253,191.61,191.6,0.063]
[1738869975453,30.09929253,191.61,191.6,0.063]
[1738869975654,55.74990977,191.61,191.6,0.063]
[1738869975876,2.12549,191.6,191.56,0.063]
[1738869976054,32.0,191.57,191.56,0.063]
[1738869976370,1.0,191.56,191.55,0.063]
[1738869977067,38.10045577,191.56,191.55,0.063]
[1738869977291,38.10045577,191.56,191.51,0.0001]
[1738869977292,45.53733853,191.52,191.51,0.0001]
[1738869977446,30.0,191.46,191.44,0.063]
[1738869977652,23.56311724,191.45,191.44,0.063]
[1738869978348,53.56311724,191.46,191.44,0.063]
[1738869978748,23.56311724,191.45,191.44,0.063]
[1738869979572,25.65241724,191.45,191.44,0.063]
[1738869981077,2.0892,191.46,191.44,0.063]
[1738869981270,105.66311724,191.47,191.44,0.063]
[1738869981271,84.1891,191.47,191.44,0.063]
[1738869981476,30.0,191.46,191.44,0.063]
[1738869982177,82.1,191.47,191.44,0.063]
[1738869982359,112.1,191.47,191.44,0.063]
[1738869982559,114.1891,191.47,191.44,0.063]
[1738869982872,137.75221724,191.47,191.44,0.063]
[1738869983065,23.56311724,191.5,191.44,23.62611724]
[1738869983488,53.56311724,191.51,191.45,23.56311724]
[1738869983788,135.66311724,191.55,191.49,23.56311724]
[1738869983965,112.1,191.55,191.49,23.56311724]
[1738869984157,137.75131724,191.55,191.49,23.56311724]
[1738869984361,23.56311724,191.54,191.48,23.56311724]
[1738869984579,114.1882,191.55,191.49,23.56311724]
[1738869985094,137.75131724,191.55,191.49,23.56311724]
[1738869985295,53.56311724,191.53,191.46,23.56311724]
[1738869985459,23.56311724,191.52,191.46,23.56311724]
[1738869985961,53.56311724,191.53,191.47,23.56311724]
[1738869986171,53.56311724,191.53,191.46,23.56311724]
[1738869986366,23.56311724,191.52,191.46,23.56311724]
[1738869986675,2.0885,191.52,191.46,23.56311724]
[1738869987274,25.65161724,191.52,191.46,23.56311724]
[1738869987874,2.0885,191.52,191.46,23.56311724]
[1738869988078,2.1185,191.52,191.46,23.56311724]
[1738869989261,23.56311724,191.47,191.44,0.063]
[1738869989457,23.56311724,191.45,191.44,0.063]
[1738869989658,24.81409724,191.45,191.44,0.0001]
[1738869989861,27.90339724,191.45,191.44,0.0001]
[1738869990059,41.44073577,191.45,191.44,0.0001]
[1738869990365,47.54015153,191.45,191.44,0.0001]
[1738869990801,45.66282853,191.41,191.4,0.0001]
[1738869991277,92.78906301,191.41,191.4,0.0001]
[1738869991895,71.06466577,191.41,191.4,0.0001]
[1738869992064,69.06466577,191.41,191.4,0.0001]
[1738869992762,55.65281724,191.41,191.4,0.0001]
[1738869993465,69.31564577,191.41,191.4,0.0001]
[1738869993666,95.00425301,191.41,191.4,0.0001]
[1738869994376,71.44113577,191.41,191.4,0.0001]
[1738869994568,71.55268328,191.41,191.4,0.0001]
[1738869994769,95.11580052,191.41,191.4,0.0001]
[1738869995072,69.17621328,191.41,191.4,0.0001]
[1738869997770,70.17621328,191.41,191.4,0.0001]
[1738869998982,71.55268328,191.41,191.4,0.0001]
[1738869999170,45.78831853,191.37,191.36,0.0001]
[1738869999365,69.35143577,191.37,191.36,0.0001]
[1738870000287,53.56311724,191.37,191.36,0.0001]
[1738870000585,66.97496577,191.37,191.36,0.0001]
[1738870000974,67.22594577,191.37,191.36,0.0001]
[1738870001166,71.44153577,191.37,191.36,0.0001]
[1738870001900,44.66282853,191.32,191.31,0.0001]
[1738870002110,69.35143577,191.32,191.31,0.0001]
[1738870003168,71.44213577,191.32,191.31,0.0001]
[1738870003371,70.44213577,191.32,191.31,0.0001]
[1738870004442,55.65381724,191.32,191.31,0.0001]
[1738870004571,32.0907,191.32,191.31,0.0001]
[1738870004771,2.0907,191.32,191.31,0.0001]
[1738870005268,32.0907,191.32,191.31,0.0001]
[1738870005709,2.0906,191.33,191.31,0.0001]
[1738870005879,30.0,191.34,191.31,0.0001]
[1738870005880,2.0905,191.35,191.31,23.56321724]
[1738870007524,2.0905,191.35,191.31,0.0001]
[1738870007811,2.09,191.38,191.33,23.56311724]
[1738870008111,32.0899,191.39,191.33,23.56311724]
[1738870008288,32.0899,191.39,191.34,23.56311724]
[1738870008490,55.65301724,191.39,191.33,23.56311724]
[1738870008682,55.65301724,191.39,191.32,23.56311724]
[1738870008883,23.56311724,191.38,191.31,23.56321724]
[1738870009086,2.0901,191.38,191.32,23.56311724]
[1738870009391,30.0,191.37,191.32,23.56311724]
[1738870009591,30.0,191.37,191.28,6.1642]
[1738870009592,30.0,191.29,191.25,0.063]
[1738870009795,23.56311724,191.28,191.25,0.063]
[1738870010189,30.0,191.29,191.25,0.063]
[1738870010585,53.56311724,191.29,191.25,0.063]
[1738870011084,23.56311724,191.28,191.25,0.063]
[1738870011278,25.65421724,191.28,191.25,0.063]
[1738870011690,30.0,191.27,191.21,23.37811724]
[1738870011903,30.0,191.27,191.21,23.56311724]
[1738870012496,32.0913,191.27,191.21,23.56311724]
[1738870012811,2.091,191.29,191.23,23.56311724]
[1738870013005,30.0,191.28,191.23,23.56311724]
[1738870014111,30.0,191.33,191.27,23.56311724]
[1738870014299,30.0,191.32,191.28,23.56311724]
[1738870014618,0.10749155,191.28,191.26,23.56311724]
[1738870015212,0.10749155,191.28,191.27,23.56311724]
[1738870015592,0.10749155,191.28,191.26,23.56311724]
[1738870016989,0.10749155,191.28,191.27,23.56311724]
[1738870017406,0.10749155,191.28,191.27,22.06311724]
[1738870018490,0.10749155,191.28,191.27,22.18860724]
[1738870018816,0.10749155,191.28,191.27,22.06311724]
[1738870020217,0.10749155,191.28,191.27,27.29131724]
[1738870020427,0.10749155,191.28,191.27,27.41680724]
[1738870020599,0.10749155,191.28,191.27,27.29131724]
[1738870021412,0.10749155,191.28,191.27,22.06311724]
[1738870021611,2.19859155,191.28,191.24,1.5285]
[1738870021926,0.10749155,191.28,191.24,25.09161724]
[1738870022527,0.10749155,191.28,191.25,23.56311724]
[1738870022730,0.10749155,191.28,191.24,25.09161724]
[1738870022905,0.10749155,191.28,191.24,24.59161724]
[1738870023333,0.10749155,191.28,191.27,23.56311724]
[1738870024414,0.10749155,191.28,191.26,23.56311724]
[1738870024631,0.10749155,191.28,191.27,23.56311724]
[1738870026137,0.10749155,191.28,191.25,23.62611724]
[1738870026835,0.10749155,191.28,191.26,23.56311724]
[1738870027605,0.10749155,191.28,191.27,23.56311724]
[1738870028536,0.10749155,191.28,191.27,37.35143577]
[1738870029036,0.10166895,191.29,191.28,0.25098]
[1738870029334,0.10166895,191.29,191.25,0.063]
[1738870029335,30.0,191.28,191.25,0.063]
[1738870029521,23.56311724,191.27,191.25,0.063]
[1738870029715,25.65441724,191.27,191.25,0.063]
[1738870030318,2.0913,191.27,191.25,0.063]
[1738870031127,0.10166895,191.29,191.25,0.063]
[1738870031334,0.10166895,191.29,191.25,23.62611724]
[1738870031507,20.10166895,191.29,191.25,23.62611724]
[1738870032033,45.75578619,191.29,191.25,0.063]
[1738870032241,23.56311724,191.27,191.25,0.063]
[1738870033113,2.0912,191.27,191.25,0.063]
[1738870033521,20.0,191.27,191.25,0.063]
[1738870034131,2.19276895,191.29,191.25,0.063]
[1738870034461,2.19276895,191.29,191.24,23.56311724]
[1738870034734,0.11300804,191.28,191.26,23.56311724]
[1738870036522,0.11300804,191.28,191.27,23.56311724]
[1738870038244,0.1298953,191.29,191.28,23.68860724]
[1738870038640,0.1298953,191.29,191.28,23.56311724]
[1738870039719,2.2208953,191.29,191.28,23.56311724]
[1738870039923,2.2208953,191.29,191.22,23.56311724]
[1738870039924,25.78401254,191.29,191.22,23.56311724]
[1738870040131,37.4484953,191.29,191.21,0.063]
[1738870040325,23.56311724,191.28,191.21,28.85581724]
[1738870040531,2.2208953,191.29,191.22,23.56311724]
[1738870040732,20.0,191.28,191.22,3.85245157]
[1738870040926,20.0,191.28,191.23,23.56311724]
[1738870041749,20.0,191.28,191.23,28.79231724]
[1738870042119,0.1298953,191.29,191.25,23.56311724]
[1738870043023,0.1298953,191.29,191.24,23.56311724]
[1738870043641,0.1298953,191.29,191.25,23.56311724]
[1738870044544,0.1298953,191.29,191.24,23.56311724]
[1738870044746,0.1298953,191.29,191.22,23.56311724]
[1738870044747,25.78411254,191.29,191.22,23.56311724]
[1738870044936,23.56311724,191.27,191.21,0.063]
[1738870045136,23.56311724,191.28,191.21,28.85581724]
[1738870045445,23.56311724,191.27,191.21,28.85581724]
[1738870045631,135.66311724,191.27,191.21,0.063]
[1738870045955,23.56311724,191.24,191.21,0.063]
[1738870046525,23.56311724,191.24,191.21,0.0001]
[1738870046526,78.37721448,191.22,191.21,0.0001]
[1738870046828,30.0,191.17,191.16,0.063]
[1738870047028,53.56311724,191.17,191.16,0.063]
[1738870047232,30.0,191.23,191.16,23.62611724]
[1738870047427,20.0,191.22,191.16,0.063]
[1738870047629,20.0,191.22,191.16,5.294]
[1738870048039,114.45108326,191.28,191.17,0.12549]
[1738870048040,30.0,191.27,191.17,0.12549]
[1738870048233,2.0912,191.27,191.17,0.12549]
[1738870048434,11.91035473,191.28,191.26,23.56311724]
[1738870048850,11.91035473,191.28,191.24,14.77846693]
[1738870049029,11.91035473,191.28,191.25,14.77846693]
[1738870049358,0.1298953,191.29,191.25,14.77846693]
[1738870049653,20.0,191.28,191.24,14.77846693]
[1738870050339,0.1298953,191.29,191.24,14.77846693]
[1738870050540,0.1298953,191.29,191.23,14.77846693]
[1738870050727,0.1298953,191.29,191.23,23.65038042]
[1738870050936,0.1298953,191.29,191.21,0.063]
[1738870050937,23.65038042,191.27,191.21,0.063]
[1738870051749,23.65038042,191.26,191.21,0.063]
[1738870052129,23.65038042,191.22,191.21,0.063]
[1738870053338,25.74208042,191.23,191.21,0.063]
[1738870053537,23.65038042,191.24,191.21,0.063]
[1738870053740,53.65038042,191.24,191.21,0.063]
[1738870053945,43.65038042,191.22,191.21,0.063]
[1738870054142,73.65038042,191.22,191.21,0.063]
[1738870054548,73.74604776,191.22,191.21,0.063]
[1738870055029,75.83784776,191.22,191.21,0.063]
[1738870055229,45.83784776,191.22,191.21,0.063]
[1738870055573,20.09566734,191.22,191.21,0.063]
[1738870056657,2.18746734,191.22,191.21,0.063]
[1738870057159,45.83784776,191.22,191.21,0.063]